[Event "34rd NATO Championship 2024"]
[Site "Rhodes"]
[Date "2024.10.22"]
[Round "3.17"]
[White "Hof - Van Run, Rieke"]
[Black "Jeselson, Andrew"]
[Result "0-1"]
[ECO "B21"]
[WhiteElo "2038"]
[BlackElo "1858"]
[Annotator "RC"]
[PlyCount "76"]
[EventDate "2024.09.18"]
[EventType "swiss"]
[EventCountry "GRE"]
[SourceTitle "playchess.com"]
[Source "ChessBase"]
[SourceQuality "1"]
[TimeControl "5400+30"]

1. e4 {[%emt 0:00:03]} c5 {[%emt 0:00:14]} 2. f4 {[%emt 0:00:25]} d5 {[%emt 0:10:27]} 3. exd5 {[%emt 0:01:07]} Nf6 {[%emt 0:00:09]} 4. Bb5+ {[%emt 0:02:41]} Bd7 {[%emt 0:04:11]} 5. Bxd7+ {[%emt 0:00:36]} Qxd7 {[%emt 0:00:17]} 6. c4 {[%emt 0:01:15]} e6 {[%emt 0:00:10]} 7. dxe6 {[%emt 0:00:40]} fxe6 {[%emt 0:00:08]} 8. Nf3 {[%emt 0:01:31]} Bd6 {[%emt 0:00:17]} 9. d3 {[%emt 0:05:22]} Nc6 {[%emt 0:00:28]} 10. Nc3 {[%emt 0:02:05]} O-O {[%emt 0:00:26]} 11. Qe2 {[%emt 0:09:08]} e5 {[%emt 0:07:21]} 12. fxe5 {[%emt 0:14:58]} Nxe5 {[%emt 0:01:28]} 13. O-O {[%emt 0:10:05]} Rae8 {[%emt 0:01:16]} 14. Bg5 {[%emt 0:09:13]} Nxf3+ {[%emt 0:07:55]} 15. Qxf3 {[%emt 0:00:19]} Bxh2+ {[%emt 0:00:19]} 16. Kh1 {[%emt 0:00:53]} Be5 {[%emt 0:01:20]} 17. Rae1 {[%emt 0:02:33]} Bxc3 {[%emt 0:02:22]} 18. Rxe8 {[%emt 0:01:20]} Qxe8 {[%emt 0:00:44]} 19. bxc3 {[%emt 0:00:08]} Ng4 {[%emt 0:01:39]} 20. Qxf8+ {[%emt 0:05:58]} Qxf8 {[%emt 0:00:06]} 21. Rxf8+ {[%emt 0:00:10]} Kxf8 {[%emt 0:00:06]} 22. d4 {[%emt 0:00:17]} Nf2+ {[%emt 0:00:33]} 23. Kg1 {[%emt 0:00:22]} Ne4 {[%emt 0:00:11]} 24. Be3 Nxc3 {[%emt 0:00:14]} 25. d5 {[%emt 0:01:09]} b6 {[%emt 0:00:24]} 26. a3 {[%emt 0:00:17]} Ne4 {[%emt 0:01:45]} 27. Bf4 {[%emt 0:01:17]} Ke7 {[%emt 0:00:26]} 28. Be5 {[%emt 0:03:29]} g6 {[%emt 0:12:22]} 29. Bf4 {[%emt 0:00:55]} Nd6 {[%emt 0:07:25]} 30. Bxd6+ {[%emt 0:00:32]} Kxd6 {[%emt 0:00:05]} 31. Kf2 {[%emt 0:00:07]} b5 {[%emt 0:00:16]} 32. cxb5 {[%emt 0:00:13]} Kxd5 {[%emt 0:00:07]} 33. Ke2 {[%emt 0:01:20]} Kc4 {[%emt 0:00:07]} 34. a4 {[%emt 0:00:06]} h5 {[%emt 0:00:31]} 35. Ke3 {[%emt 0:01:00]} Kb4 {[%emt 0:00:23]} 36. Kd3 {[%emt 0:00:09]} g5 {[%emt 0:01:40]} 37. g3 {[%emt 0:02:52]} Kxa4 {[%emt 0:01:02]} 38. Kc4 {[%emt 0:00:02]} h4 {[%emt 0:40:36]} 0-1

[Event "34rd NATO Championship 2024"]
[Site "Rhodes"]
[Date "2024.10.22"]
[Round "3.19"]
[White "Pietruszewski, Marcin"]
[Black "Hater, David"]
[Result "1-0"]
[ECO "D78"]
[WhiteElo "2174"]
[BlackElo "1922"]
[Annotator "RC"]
[PlyCount "61"]
[EventDate "2024.09.18"]
[EventType "swiss"]
[EventCountry "GRE"]
[SourceTitle "playchess.com"]
[Source "ChessBase"]
[SourceQuality "1"]
[TimeControl "5400+30"]

1. d4 {[%emt 0:00:02]} Nf6 {[%emt 0:00:09]} 2. c4 {[%emt 0:00:05]} g6 {[%emt 0:00:09]} 3. Nf3 {[%emt 0:00:08]} Bg7 {[%emt 0:00:21]} 4. g3 {[%emt 0:00:06]} O-O {[%emt 0:00:26]} 5. Bg2 {[%emt 0:00:04]} c6 {[%emt 0:02:16]} 6. O-O {[%emt 0:00:53]} d5 {[%emt 0:00:15]} 7. Nbd2 {[%emt 0:00:21]} Nbd7 {[%emt 0:06:59]} 8. b3 {[%emt 0:02:11]} b6 {[%emt 0:01:44]} 9. Bb2 {[%emt 0:23:28]} Bb7 {[%emt 0:00:27]} 10. Rc1 {[%emt 0:00:27]} Rc8 {[%emt 0:00:32]} 11. e3 {[%emt 0:01:58]} e6 {[%emt 0:02:52]} 12. Qe2 {[%emt 0:03:19]} Rc7 {[%emt 0:08:18]} 13. Rfd1 {[%emt 0:08:42]} Qc8 {[%emt 0:06:02]} 14. b4 {[%emt 0:13:37]} Rd8 {[%emt 0:09:06]} 15. a4 {[%emt 0:04:15]} c5 {[%emt 0:10:24]} 16. dxc5 {[%emt 0:00:05]} bxc5 {[%emt 0:00:11]} 17. b5 {[%emt 0:00:02]} Nb6 {[%emt 0:02:55]} 18. a5 {[%emt 0:01:21]} Nxc4 {[%emt 0:46:24]} 19. Nxc4 {[%emt 0:00:04]} dxc4 {[%emt 0:00:00]} 20. Qxc4 {[%emt 0:09:18]} Rxd1+ {[%emt 0:00:00]} 21. Rxd1 {[%emt 0:00:01]} Bd5 {[%emt 0:00:00]} 22. Qh4 {[%emt 0:00:56]} Nh5 {[%emt 0:00:00]} 23. Bxg7 {[%emt 0:00:02]} Kxg7 {[%emt 0:00:00]} 24. e4 {[%emt 0:03:33]} Bb3 {[%emt 0:00:00]} 25. Rd8 {[%emt 0:07:09]} Qb7 {[%emt 0:00:00]} 26. g4 {[%emt 0:08:57]} Nf4 {[%emt 0:00:00]} 27. e5 {[%emt 0:00:13]} Nxg2 {[%emt 0:00:00]} 28. Qf6+ {[%emt 0:03:59]} Kh6 {[%emt 0:00:00]} 29. Qg5+ {[%emt 0:01:12]} Kg7 {[%emt 0:00:00]} 30. Qf6+ {[%emt 0:00:20]} Kh6 {[%emt 0:00:00]} 31. Rg8 {[%emt 0:01:36]} 1-0

[Event "34rd NATO Championship 2024"]
[Site "Rhodes"]
[Date "2024.10.22"]
[Round "3.20"]
[White "Van de Walle, Rob"]
[Black "Jauk, Wilhelm"]
[Result "0-1"]
[ECO "E14"]
[WhiteElo "1900"]
[BlackElo "2143"]
[Annotator "RC"]
[PlyCount "118"]
[EventDate "2024.09.18"]
[EventType "swiss"]
[EventCountry "GRE"]
[SourceTitle "playchess.com"]
[Source "ChessBase"]
[SourceQuality "1"]
[TimeControl "5400+30"]

1. d4 {[%emt 0:00:02]} d5 {[%emt 0:00:24]} 2. c4 {[%emt 0:00:05]} e6 {[%emt 0:00:11]} 3. Nc3 {[%emt 0:00:04]} Nf6 {[%emt 0:00:07]} 4. Nf3 {[%emt 0:00:06]} Be7 {[%emt 0:00:10]} 5. e3 {[%emt 0:01:47]} O-O {[%emt 0:00:28]} 6. Bd3 {[%emt 0:00:25]} b6 {[%emt 0:07:16]} 7. cxd5 {[%emt 0:01:25]} exd5 {[%emt 0:00:19]} 8. O-O {[%emt 0:03:30]} Bb7 {[%emt 0:07:19]} 9. Ne5 {[%emt 0:05:34]} c5 {[%emt 0:04:17]} 10. Kh1 {[%emt 0:02:30]} Nc6 {[%emt 0:08:08]} 11. f4 {[%emt 0:02:59]} cxd4 {[%emt 0:06:43]} 12. exd4 {[%emt 0:00:58]} Nxd4 {[%emt 0:02:21]} 13. Bxh7+ {[%emt 0:00:54]} Nxh7 {[%emt 0:01:00]} 14. Qxd4 {[%emt 0:00:14]} Bc5 {[%emt 0:01:24]} 15. Qd3 {[%emt 0:02:57]} Nf6 {[%emt 0:02:22]} 16. Rd1 {[%emt 0:04:16]} Qe7 {[%emt 0:16:55]} 17. Be3 {[%emt 0:09:24]} Rfd8 {[%emt 0:01:06]} 18. Bd4 {[%emt 0:12:02]} Rac8 {[%emt 0:00:50]} 19. Rac1 {[%emt 0:04:02]} Bd6 {[%emt 0:08:27]} 20. Re1 {[%emt 0:06:20]} Qf8 {[%emt 0:01:55]} 21. Rcd1 {[%emt 0:02:14]} Bc5 {[%emt 0:01:50]} 22. Rd2 {[%emt 0:13:19]} Ne4 {[%emt 0:02:29]} 23. Rde2 {[%emt 0:01:41]} Bxd4 {[%emt 0:01:47]} 24. Qxd4 {[%emt 0:00:02]} Qc5 {[%emt 0:02:25]} 25. Qxc5 {[%emt 0:02:11]} Rxc5 {[%emt 0:00:52]} 26. Nf3 {[%emt 0:05:55]} Nxc3 {[%emt 0:08:25]} 27. bxc3 {[%emt 0:00:16]} Rxc3 {[%emt 0:02:16]} 28. Re7 {[%emt 0:00:34]} Bc6 {[%emt 0:02:35]} 29. Nd4 {[%emt 0:05:50]} Bd7 {[%emt 0:00:22]} 30. h3 {[%emt 0:01:11]} Rc4 {[%emt 0:00:57]} 31. Rd1 {[%emt 0:01:23]} Kf8 {[%emt 0:01:27]} 32. Re3 {[%emt 0:00:02]} g6 {[%emt 0:01:02]} 33. Kh2 {[%emt 0:00:23]} Rdc8 {[%emt 0:01:05]} 34. Red3 {[%emt 0:01:00]} Ra4 {[%emt 0:00:37]} 35. a3 {[%emt 0:00:47]} Be6 {[%emt 0:01:12]} 36. g4 {[%emt 0:00:21]} Kg7 {[%emt 0:01:16]} 37. f5 {[%emt 0:06:25]} gxf5 {[%emt 0:00:37]} 38. gxf5 {[%emt 0:00:08]} Bd7 {[%emt 0:00:09]} 39. Kg3 {[%emt 0:01:40]} Kf6 {[%emt 0:00:40]} 40. h4 {[%emt 0:01:26]} Rg8+ {[%emt 0:01:07]} 41. Kf3 {[%emt 0:00:53]} Rh8 {[%emt 0:01:01]} 42. Kg3 {[%emt 0:00:17]} Rh5 {[%emt 0:00:58]} 43. Rf1 {[%emt 0:00:24]} a6 {[%emt 0:00:58]} 44. Rf4 {[%emt 0:00:41]} b5 {[%emt 0:00:34]} 45. Kg4 {[%emt 0:00:38]} Rh8 {[%emt 0:00:23]} 46. Kg3 {[%emt 0:01:13]} a5 {[%emt 0:00:27]} 47. Nf3 {[%emt 0:01:18]} Rxf4 {[%emt 0:03:10]} 48. Kxf4 {[%emt 0:00:01]} Bc6 {[%emt 0:00:56]} 49. Rc3 {[%emt 0:00:17]} Ba8 {[%emt 0:00:34]} 50. Kg4 {[%emt 0:00:45]} Re8 {[%emt 0:00:20]} 51. Ng5 {[%emt 0:00:49]} d4 {[%emt 0:00:29]} 52. Rc7 {[%emt 0:00:21]} Bd5 {[%emt 0:00:30]} 53. Rd7 {[%emt 0:00:28]} Re5 {[%emt 0:00:23]} 54. Rd6+ {[%emt 0:02:03]} Ke7 {[%emt 0:00:28]} 55. Ra6 {[%emt 0:00:08]} d3 {[%emt 0:00:25]} 56. Nf3 {[%emt 0:00:31]} Bxf3+ {[%emt 0:00:43]} 57. Kxf3 {[%emt 0:00:18]} d2 {[%emt 0:00:18]} 58. f6+ {[%emt 0:00:17]} Kd7 {[%emt 0:00:12]} 59. Ra7+ {[%emt 0:00:07]} Kc6 {[%emt 0:00:11]} 0-1

[Event "34rd NATO Championship 2024"]
[Site "Rhodes"]
[Date "2024.10.22"]
[Round "3.21"]
[White "Mautone, Valerio"]
[Black "Unruh, Charles M"]
[Result "0-1"]
[ECO "B07"]
[WhiteElo "2117"]
[BlackElo "1911"]
[Annotator "RC"]
[PlyCount "142"]
[EventDate "2024.09.18"]
[EventType "swiss"]
[EventCountry "GRE"]
[SourceTitle "playchess.com"]
[Source "ChessBase"]
[SourceQuality "1"]
[TimeControl "5400+30"]

1. e4 {[%emt 0:00:05]} d6 {[%emt 0:00:03]} 2. d4 {[%emt 0:00:08]} Nf6 {[%emt 0:00:05]} 3. Nc3 {[%emt 0:00:10]} g6 {[%emt 0:00:04]} 4. Be3 {[%emt 0:06:10]} c6 {[%emt 0:00:07]} 5. Qd2 {[%emt 0:00:14]} b5 {[%emt 0:00:36]} 6. f3 {[%emt 0:03:27]} Nbd7 {[%emt 0:00:35]} 7. d5 {[%emt 0:04:27]} cxd5 {[%emt 0:00:37]} 8. Bxb5 {[%emt 0:01:26]} dxe4 {[%emt 0:01:06]} 9. O-O-O {[%emt 0:03:34]} Qc7 {[%emt 0:08:58]} 10. fxe4 {[%emt 0:04:32]} Bg7 {[%emt 0:00:36]} 11. Nf3 {[%emt 0:07:19]} O-O {[%emt 0:00:18]} 12. Bh6 {[%emt 0:02:11]} Bb7 {[%emt 0:01:16]} 13. Bxg7 {[%emt 0:04:35]} Kxg7 {[%emt 0:00:09]} 14. Rhe1 {[%emt 0:02:43]} Rac8 {[%emt 0:02:42]} 15. Kb1 {[%emt 0:06:12]} Rfd8 {[%emt 0:04:49]} 16. Nd4 {[%emt 0:10:02]} Qc5 {[%emt 0:03:21]} 17. h3 {[%emt 0:09:50]} h6 {[%emt 0:04:24]} 18. g4 {[%emt 0:01:55]} Qe5 {[%emt 0:05:42]} 19. Nf3 {[%emt 0:02:36]} Qg3 {[%emt 0:04:38]} 20. Ng1 {[%emt 0:14:35]} Ne5 {[%emt 0:00:52]} 21. Re3 {[%emt 0:00:30]} Qf4 {[%emt 0:01:09]} 22. Qe2 {[%emt 0:00:08]} a6 {[%emt 0:01:11]} 23. Rf1 {[%emt 0:01:10]} Qg5 {[%emt 0:00:06]} 24. Bd3 {[%emt 0:01:35]} h5 {[%emt 0:02:12]} 25. gxh5 {[%emt 0:01:29]} Nxh5 {[%emt 0:00:11]} 26. Nf3 {[%emt 0:00:58]} Nxf3 {[%emt 0:04:47]} 27. Rexf3 {[%emt 0:00:19]} Nf6 {[%emt 0:00:24]} 28. Bxa6 {[%emt 0:01:20]} Bxa6 {[%emt 0:02:53]} 29. Qxa6 {[%emt 0:00:03]} Ra8 {[%emt 0:00:15]} 30. Qb7 {[%emt 0:01:02]} Qe5 {[%emt 0:00:14]} 31. Qb5 {[%emt 0:01:35]} Qe6 {[%emt 0:02:20]} 32. b3 {[%emt 0:03:11]} Rdc8 {[%emt 0:02:09]} 33. Qd3 {[%emt 0:01:02]} Rf8 {[%emt 0:00:35]} 34. Qd4 {[%emt 0:00:51]} Kg8 {[%emt 0:00:33]} 35. h4 {[%emt 0:00:55]} Ra5 {[%emt 0:00:12]} 36. Qb4 {[%emt 0:01:04]} Re5 {[%emt 0:00:22]} 37. Rf4 {[%emt 0:01:04]} Nh5 {[%emt 0:00:22]} 38. R4f2 {[%emt 0:00:35]} Ng3 {[%emt 0:00:39]} 39. Re1 {[%emt 0:00:37]} Qg4 {[%emt 0:00:21]} 40. Rh2 {[%emt 0:01:43]} Qf4 {[%emt 0:00:14]} 41. Nd5 {[%emt 0:00:36]} Rxd5 {[%emt 0:00:07]} 42. Qb6 {[%emt 0:01:36]} Nxe4 {[%emt 0:00:34]} 43. Rg2 {[%emt 0:00:45]} Nc3+ {[%emt 0:00:41]} 44. Kb2 {[%emt 0:00:18]} Qf6 {[%emt 0:00:32]} 45. Kc1 {[%emt 0:01:47]} Na4 {[%emt 0:01:03]} 46. bxa4 {[%emt 0:00:18]} Qf4+ {[%emt 0:00:24]} 47. Qe3 {[%emt 0:00:37]} Qxa4 {[%emt 0:00:33]} 48. Qb3 {[%emt 0:00:08]} Qf4+ {[%emt 0:00:17]} 49. Kb1 {[%emt 0:00:47]} e6 {[%emt 0:01:23]} 50. Ka1 {[%emt 0:00:42]} Qf6+ {[%emt 0:00:16]} 51. c3 {[%emt 0:00:07]} Rc8 {[%emt 0:00:18]} 52. Rc2 {[%emt 0:00:34]} Rdc5 {[%emt 0:00:08]} 53. Rec1 {[%emt 0:00:22]} Qxh4 {[%emt 0:00:10]} 54. Qb2 {[%emt 0:00:08]} Qf6 {[%emt 0:00:13]} 55. Rf2 {[%emt 0:00:04]} Qe5 {[%emt 0:00:56]} 56. Rfc2 {[%emt 0:00:32]} d5 {[%emt 0:00:36]} 57. Qb4 {[%emt 0:01:42]} Rc4 {[%emt 0:00:20]} 58. Qa5 {[%emt 0:00:09]} Qd6 {[%emt 0:02:00]} 59. Kb1 {[%emt 0:00:51]} Qc6 {[%emt 0:01:48]} 60. Kb2 {[%emt 0:00:32]} d4 {[%emt 0:01:05]} 61. Qa3 {[%emt 0:00:32]} d3 {[%emt 0:01:20]} 62. Rd2 {[%emt 0:00:06]} Ra4 {[%emt 0:00:35]} 63. Qe7 {[%emt 0:00:44]} Qc4 {[%emt 0:00:34]} 64. a3 {[%emt 0:00:38]} Rb8+ {[%emt 0:00:14]} 65. Ka1 {[%emt 0:00:09]} Qb3 {[%emt 0:00:35]} 66. Ra2 {[%emt 0:00:15]} d2 {[%emt 0:00:15]} 67. Qg5 {[%emt 0:01:08]} dxc1=Q+ {[%emt 0:00:48]} 68. Qxc1 {[%emt 0:00:03]} Rc8 {[%emt 0:00:29]} 69. Rb2 {[%emt 0:00:29]} Qxa3+ {[%emt 0:00:15]} 70. Kb1 {[%emt 0:00:12]} Qa1+ {[%emt 0:00:08]} 71. Kc2 {[%emt 0:00:08]} Rxc3+ {[%emt 0:00:04]} 0-1

[Event "34rd NATO Championship 2024"]
[Site "Rhodes"]
[Date "2024.10.22"]
[Round "3.22"]
[White "Sauer, Marko"]
[Black "Kruit, Erik"]
[Result "1-0"]
[ECO "B32"]
[WhiteElo "2086"]
[BlackElo "1899"]
[Annotator "RC"]
[PlyCount "65"]
[EventDate "2024.09.18"]
[EventType "swiss"]
[EventCountry "GRE"]
[SourceTitle "playchess.com"]
[Source "ChessBase"]
[SourceQuality "1"]
[TimeControl "5400+30"]

1. e4 {[%emt 0:00:06]} c5 {[%emt 0:00:18]} 2. Nf3 {[%emt 0:00:09]} Nc6 {[%emt 0:00:31]} 3. d4 {[%emt 0:00:21]} cxd4 {[%emt 0:00:13]} 4. Nxd4 {[%emt 0:00:07]} e5 {[%emt 0:01:38]} 5. Nb5 {[%emt 0:00:39]} a6 {[%emt 0:00:19]} 6. Nd6+ {[%emt 0:00:41]} Bxd6 {[%emt 0:00:16]} 7. Qxd6 {[%emt 0:00:09]} Qf6 {[%emt 0:00:07]} 8. Qd3 {[%emt 0:04:13]} Nge7 {[%emt 0:02:22]} 9. Be3 {[%emt 0:05:22]} d5 {[%emt 0:01:53]} 10. exd5 {[%emt 0:04:21]} Nb4 {[%emt 0:12:15]} 11. Qd2 {[%emt 0:11:15]} Nbxd5 {[%emt 0:13:45]} 12. Bg5 {[%emt 0:06:54]} Qb6 {[%emt 0:01:54]} 13. c4 {[%emt 0:03:40]} f6 {[%emt 0:00:25]} 14. cxd5 {[%emt 0:05:05]} fxg5 {[%emt 0:03:57]} 15. Bc4 {[%emt 0:01:13]} Bd7 {[%emt 0:05:10]} 16. O-O {[%emt 0:10:01]} Qd4 {[%emt 0:00:36]} 17. Qxd4 {[%emt 0:02:30]} exd4 {[%emt 0:00:07]} 18. Re1 {[%emt 0:00:14]} Kd8 {[%emt 0:00:17]} 19. Nd2 {[%emt 0:00:41]} Rc8 {[%emt 0:00:29]} 20. Bb3 {[%emt 0:01:05]} g4 {[%emt 0:07:51]} 21. Re4 {[%emt 0:05:15]} b5 {[%emt 0:05:08]} 22. Rxd4 {[%emt 0:01:16]} Bf5 {[%emt 0:01:31]} 23. Nf1 {[%emt 0:01:35]} h5 {[%emt 0:01:03]} 24. Ne3 {[%emt 0:01:00]} Rf8 {[%emt 0:01:55]} 25. a4 {[%emt 0:02:34]} Kd7 {[%emt 0:01:24]} 26. axb5 {[%emt 0:00:53]} axb5 {[%emt 0:00:19]} 27. Bd1 {[%emt 0:01:10]} Kd6 {[%emt 0:00:30]} 28. Be2 {[%emt 0:01:12]} Bd7 {[%emt 0:01:08]} 29. Ra6+ {[%emt 0:03:43]} Ke5 {[%emt 0:01:01]} 30. Rd1 {[%emt 0:00:51]} Rf4 {[%emt 0:01:46]} 31. Bxb5 {[%emt 0:01:30]} Bf5 {[%emt 0:02:42]} 32. Nxf5 {[%emt 0:02:44]} Kxf5 {[%emt 0:00:25]} 33. Bd7+ {[%emt 0:24:31]} 1-0

[Event "34rd NATO Championship 2024"]
[Site "Rhodes"]
[Date "2024.10.22"]
[Round "3.23"]
[White "Dino, Giuseppe"]
[Black "Wells, Daniel J"]
[Result "1-0"]
[ECO "B20"]
[WhiteElo "1884"]
[BlackElo "2036"]
[Annotator "RC"]
[PlyCount "135"]
[EventDate "2024.09.18"]
[EventType "swiss"]
[EventCountry "GRE"]
[SourceTitle "playchess.com"]
[Source "ChessBase"]
[SourceQuality "1"]
[TimeControl "5400+30"]

1. g3 {[%emt 0:00:10]} g6 {[%emt 0:00:14]} 2. Bg2 {[%emt 0:00:07]} Bg7 {[%emt 0:00:28]} 3. e4 {[%emt 0:00:05]} c5 {[%emt 0:01:20]} 4. f4 {[%emt 0:00:12]} Nc6 {[%emt 0:00:36]} 5. c3 {[%emt 0:00:13]} d6 {[%emt 0:00:49]} 6. Nf3 {[%emt 0:00:12]} e5 {[%emt 0:06:25]} 7. O-O {[%emt 0:01:28]} Nge7 {[%emt 0:00:51]} 8. d3 {[%emt 0:00:41]} O-O {[%emt 0:01:25]} 9. Na3 {[%emt 0:01:14]} d5 {[%emt 0:23:45]} 10. exd5 {[%emt 0:09:07]} Nxd5 {[%emt 0:00:14]} 11. Nxe5 {[%emt 0:00:07]} Nxe5 {[%emt 0:00:52]} 12. fxe5 {[%emt 0:00:04]} Bxe5 {[%emt 0:01:28]} 13. Qf3 {[%emt 0:03:13]} Be6 {[%emt 0:01:48]} 14. Bh6 {[%emt 0:00:08]} Bg7 {[%emt 0:00:27]} 15. Bxg7 {[%emt 0:00:02]} Kxg7 {[%emt 0:00:16]} 16. Nc4 {[%emt 0:00:03]} b5 {[%emt 0:10:36]} 17. Nd2 {[%emt 0:05:03]} Rc8 {[%emt 0:05:26]} 18. Ne4 {[%emt 0:00:54]} f5 {[%emt 0:04:26]} 19. Nf2 {[%emt 0:00:18]} Rc7 {[%emt 0:02:57]} 20. Rae1 {[%emt 0:00:32]} Bg8 {[%emt 0:04:21]} 21. Re5 {[%emt 0:02:23]} Nf6 {[%emt 0:02:03]} 22. a3 {[%emt 0:00:15]} Re8 {[%emt 0:01:56]} 23. Rfe1 {[%emt 0:03:10]} Rce7 {[%emt 0:07:52]} 24. Rxe7+ {[%emt 0:03:19]} Rxe7 {[%emt 0:00:09]} 25. Rxe7+ {[%emt 0:00:02]} Qxe7 {[%emt 0:00:09]} 26. Qc6 {[%emt 0:00:07]} Qe1+ {[%emt 0:03:32]} 27. Bf1 {[%emt 0:00:03]} Nd5 {[%emt 0:00:30]} 28. h4 {[%emt 0:05:18]} Qe3 {[%emt 0:05:28]} 29. Kg2 {[%emt 0:01:26]} Qe5 {[%emt 0:05:30]} 30. d4 {[%emt 0:13:37]} cxd4 {[%emt 0:04:00]} 31. cxd4 {[%emt 0:00:02]} Qxd4 {[%emt 0:00:15]} 32. Qxb5 {[%emt 0:08:15]} Ne3+ {[%emt 0:00:35]} 33. Kg1 {[%emt 0:00:06]} Ng4 {[%emt 0:03:30]} 34. Qb7+ {[%emt 0:00:26]} Kf6 {[%emt 0:00:36]} 35. Qf3 {[%emt 0:00:15]} Ne5 {[%emt 0:01:00]} 36. Qc3 {[%emt 0:00:07]} Qb6 {[%emt 0:00:14]} 37. b4 {[%emt 0:00:34]} Bd5 {[%emt 0:00:32]} 38. Bg2 {[%emt 0:03:51]} Qb7 {[%emt 0:01:30]} 39. Nd3 {[%emt 0:02:46]} Bxg2 {[%emt 0:00:30]} 40. Qxe5+ {[%emt 0:04:20]} Kf7 {[%emt 0:00:04]} 41. Nf4 {[%emt 0:00:45]} Be4 {[%emt 0:00:46]} 42. Qh8 {[%emt 0:05:16]} Qb6+ {[%emt 0:00:41]} 43. Kf1 {[%emt 0:00:01]} Qe3 {[%emt 0:01:10]} 44. Qxh7+ {[%emt 0:00:07]} Ke8 {[%emt 0:00:07]} 45. Qxg6+ {[%emt 0:00:07]} Kd7 {[%emt 0:00:14]} 46. Qe6+ {[%emt 0:00:09]} Kd8 {[%emt 0:01:03]} 47. Qd6+ {[%emt 0:05:26]} Ke8 {[%emt 0:00:04]} 48. Qe5+ {[%emt 0:00:08]} Kd7 {[%emt 0:00:23]} 49. Qb5+ {[%emt 0:00:09]} Kd8 {[%emt 0:01:05]} 50. Ne6+ {[%emt 0:00:23]} Ke7 {[%emt 0:00:31]} 51. Qc5+ {[%emt 0:00:01]} Qxc5 {[%emt 0:00:06]} 52. Nxc5 {[%emt 0:00:03]} Bf3 {[%emt 0:01:07]} 53. Kf2 {[%emt 0:00:01]} Bh5 {[%emt 0:00:06]} 54. Ke3 {[%emt 0:00:01]} Kd6 {[%emt 0:00:11]} 55. Kf4 {[%emt 0:00:01]} Bg4 {[%emt 0:00:12]} 56. h5 {[%emt 0:00:03]} Bxh5 {[%emt 0:00:02]} 57. Kxf5 {[%emt 0:00:01]} Kc6 {[%emt 0:00:00]} 58. Nd3 {[%emt 0:01:16]} Kb5 {[%emt 0:00:00]} 59. Nb2 {[%emt 0:01:10]} a5 {[%emt 0:00:00]} 60. bxa5 {[%emt 0:00:02]} Kxa5 {[%emt 0:04:03]} 61. g4 {[%emt 0:00:04]} Bf7 {[%emt 0:00:00]} 62. Kf6 {[%emt 0:00:47]} Ba2 {[%emt 0:00:00]} 63. g5 {[%emt 0:00:14]} Kb5 {[%emt 0:00:00]} 64. g6 {[%emt 0:00:03]} Kc5 {[%emt 0:00:00]} 65. g7 {[%emt 0:00:12]} Kd4 {[%emt 0:00:00]} 66. Ke7 {[%emt 0:01:03]} Kc3 {[%emt 0:00:00]} 67. a4 {[%emt 0:00:01]} Kxb2 {[%emt 0:00:00]} 68. a5 {[%emt 0:00:01]} 1-0

[Event "34rd NATO Championship 2024"]
[Site "Rhodes"]
[Date "2024.10.22"]
[Round "3.24"]
[White "Steffers, Hendrik"]
[Black "Hadzicki, Tomasz"]
[Result "0-1"]
[ECO "C41"]
[WhiteElo "1882"]
[BlackElo "2034"]
[Annotator "RC"]
[PlyCount "144"]
[EventDate "2024.09.18"]
[EventType "swiss"]
[EventCountry "GRE"]
[SourceTitle "playchess.com"]
[Source "ChessBase"]
[SourceQuality "1"]
[TimeControl "5400+30"]

1. d4 {[%emt 0:00:08]} Nf6 {[%emt 0:00:06]} 2. Nf3 {[%emt 0:00:14]} d6 {[%emt 0:00:05]} 3. Nc3 {[%emt 0:00:55]} Nbd7 {[%emt 0:00:31]} 4. e4 {[%emt 0:00:41]} e5 {[%emt 0:00:10]} 5. Be2 {[%emt 0:03:23]} c6 {[%emt 0:01:21]} 6. h3 {[%emt 0:01:22]} Be7 {[%emt 0:00:34]} 7. Be3 {[%emt 0:02:12]} Qa5 {[%emt 0:05:35]} 8. O-O {[%emt 0:00:58]} O-O {[%emt 0:00:41]} 9. a3 {[%emt 0:02:18]} Qc7 {[%emt 0:03:22]} 10. Qd2 {[%emt 0:05:59]} Re8 {[%emt 0:00:41]} 11. Bd3 {[%emt 0:04:58]} Nf8 {[%emt 0:00:20]} 12. Ne2 {[%emt 0:02:53]} Ng6 {[%emt 0:00:20]} 13. c4 {[%emt 0:01:14]} Bd7 {[%emt 0:07:36]} 14. d5 {[%emt 0:01:47]} c5 {[%emt 0:00:23]} 15. b4 {[%emt 0:01:31]} b6 {[%emt 0:00:06]} 16. b5 {[%emt 0:00:57]} a6 {[%emt 0:01:12]} 17. a4 {[%emt 1:07:30]} axb5 {[%emt 0:00:23]} 18. axb5 {[%emt 0:00:00]} Ra7 {[%emt 0:01:16]} 19. Rxa7 {[%emt 0:00:00]} Qxa7 {[%emt 0:00:02]} 20. Nh2 {[%emt 0:00:00]} Ra8 {[%emt 0:06:13]} 21. f4 {[%emt 0:00:00]} exf4 {[%emt 0:00:12]} 22. Nxf4 {[%emt 0:00:00]} Ne5 {[%emt 0:00:50]} 23. Nf3 {[%emt 0:00:00]} Nxd3 {[%emt 0:00:44]} 24. Qxd3 {[%emt 0:00:00]} Qa3 {[%emt 0:03:34]} 25. e5 {[%emt 0:00:00]} dxe5 {[%emt 0:01:16]} 26. Nxe5 {[%emt 0:04:30]} Bd6 {[%emt 0:09:46]} 27. Nxd7 {[%emt 0:00:00]} Nxd7 {[%emt 0:00:02]} 28. Bc1 {[%emt 0:00:00]} Qxd3 {[%emt 0:05:01]} 29. Nxd3 {[%emt 0:00:00]} Ra4 {[%emt 0:00:48]} 30. Bf4 {[%emt 0:00:00]} Bxf4 {[%emt 0:09:00]} 31. Rxf4 {[%emt 0:00:00]} Ra3 {[%emt 0:04:13]} 32. Rf3 {[%emt 0:00:00]} Kf8 {[%emt 0:02:27]} 33. Kh2 {[%emt 0:00:00]} Ke7 {[%emt 0:01:01]} 34. Ne5 {[%emt 0:00:00]} Rxf3 {[%emt 0:01:44]} 35. Nxf3 {[%emt 0:00:00]} Nf6 {[%emt 0:06:48]} 36. Nd2 {[%emt 0:00:00]} Kd6 {[%emt 0:00:27]} 37. Kg3 {[%emt 0:00:00]} Ke5 {[%emt 0:01:30]} 38. Kf3 {[%emt 0:00:00]} Kd4 {[%emt 0:00:25]} 39. Ke2 {[%emt 0:00:00]} Ne8 {[%emt 0:01:03]} 40. g3 {[%emt 0:00:00]} f5 {[%emt 0:01:36]} 41. Kd1 {[%emt 0:01:25]} Kd3 {[%emt 0:00:52]} 42. Ke1 {[%emt 0:00:52]} Nd6 {[%emt 0:04:22]} 43. Kd1 {[%emt 0:00:24]} Nf7 {[%emt 0:00:24]} 44. h4 {[%emt 0:00:49]} g6 {[%emt 0:00:18]} 45. Ke1 {[%emt 0:00:26]} h6 {[%emt 0:00:10]} 46. Kd1 {[%emt 0:02:05]} g5 {[%emt 0:00:10]} 47. hxg5 {[%emt 0:01:21]} hxg5 {[%emt 0:00:01]} 48. Ke1 {[%emt 0:00:09]} f4 {[%emt 0:00:22]} 49. g4 {[%emt 0:00:15]} Ke3 {[%emt 0:04:47]} 50. Nb3 {[%emt 0:00:24]} Nd6 {[%emt 0:02:09]} 51. Nd2 {[%emt 0:00:50]} f3 {[%emt 0:00:15]} 52. Nf1+ {[%emt 0:00:15]} Kf4 {[%emt 0:00:02]} 53. Nd2 {[%emt 0:00:07]} Ke3 {[%emt 0:02:31]} 54. Nf1+ {[%emt 0:00:12]} Kd3 {[%emt 0:00:15]} 55. Kf2 {[%emt 0:00:39]} Kxc4 {[%emt 0:01:03]} 56. Ne3+ {[%emt 0:00:02]} Kxb5 {[%emt 0:00:02]} 57. Kxf3 {[%emt 0:00:02]} c4 {[%emt 0:01:26]} 58. Nf5 {[%emt 0:00:17]} Kc5 {[%emt 0:00:29]} 59. Ne3 {[%emt 0:01:40]} b5 {[%emt 0:00:28]} 60. Ke2 {[%emt 0:00:34]} b4 {[%emt 0:00:35]} 61. Kd2 {[%emt 0:00:18]} Ne4+ {[%emt 0:00:48]} 62. Kc1 {[%emt 0:00:47]} b3 {[%emt 0:00:32]} 63. Kb2 {[%emt 0:00:29]} Kb4 {[%emt 0:00:55]} 64. Nd1 {[%emt 0:01:35]} c3+ {[%emt 0:00:15]} 65. Nxc3 {[%emt 0:00:20]} Nxc3 {[%emt 0:00:06]} 66. d6 {[%emt 0:00:01]} Na4+ {[%emt 0:00:26]} 67. Kb1 {[%emt 0:00:07]} Nc5 {[%emt 0:00:48]} 68. Kb2 {[%emt 0:00:02]} Kc4 {[%emt 0:00:08]} 69. Kb1 {[%emt 0:00:06]} Kc3 {[%emt 0:00:12]} 70. Kc1 {[%emt 0:00:36]} b2+ {[%emt 0:00:54]} 71. Kb1 {[%emt 0:00:03]} Kb3 {[%emt 0:00:39]} 72. d7 {[%emt 0:00:04]} Na4 {[%emt 0:00:07]} 0-1